[Event "Queens Festival Final Team 2022"]
[Site "Tornelo"]
[Date "2022.06.26"]
[Round "6.3"]
[White "Maksimovic, Suzana"]
[Black "Shah, Riya"]
[Result "1-0"]
[ECO "A43"]
[WhiteElo "2145"]
[BlackElo "1559"]
[Annotator "NA RC"]
[PlyCount "94"]
[EventDate "2022.06.24"]
[EventType "team-tourn"]
[EventCountry "NET"]
[SourceTitle "playchess.com"]
[Source "ChessBase"]
[SourceQuality "1"]
[WhiteTeam "Serbia"]
[BlackTeam "Kenya"]
[WhiteTeamCountry "SRB"]
[BlackTeamCountry "KEN"]
[TimeControl "180+2"]

1. d4 {[%emt 0:00:02]} g6 {[%emt 0:00:06]} 2. e4 {[%emt 0:00:03]} Bg7 {[%emt 0:00:01]} 3. Nc3 {[%emt 0:00:01]} c5 {[%emt 0:00:02]} 4. d5 {[%emt 0:00:04]} d6 {[%emt 0:00:02]} 5. f4 {[%emt 0:00:01]} f5 {[%emt 0:00:03]} 6. exf5 {[%emt 0:00:19]} Bxf5 {[%emt 0:00:04]} 7. Nf3 {[%emt 0:00:15]} e6 {[%emt 0:00:09]} 8. Bb5+ {[%emt 0:00:13]} Nd7 {[%emt 0:00:12]} 9. dxe6 {[%emt 0:00:02]} Bxe6 {[%emt 0:00:03]} 10. Qxd6 {[%emt 0:00:05]} Qe7 {[%emt 0:00:04]} 11. Qxe7+ {[%emt 0:00:06]} Kxe7 {[%emt 0:00:02]} 12. O-O {[%emt 0:00:05]} a6 {[%emt 0:00:25]} 13. Bxd7 {[%emt 0:00:26]} Kxd7 {[%emt 0:00:04]} 14. Be3 {[%emt 0:00:04]} Bxc3 {[%emt 0:00:03]} 15. bxc3 {[%emt 0:00:02]} b6 {[%emt 0:00:02]} 16. a4 {[%emt 0:00:10]} a5 {[%emt 0:00:05]} 17. Rab1 {[%emt 0:00:08]} Kc7 {[%emt 0:00:07]} 18. Rfe1 {[%emt 0:00:04]} Nh6 {[%emt 0:00:12]} 19. Bxc5 {[%emt 0:00:07]} bxc5 {[%emt 0:00:13]} 20. Rxe6 {[%emt 0:00:02]} Rhe8 {[%emt 0:00:02]} 21. Re5 {[%emt 0:00:12]} Rxe5 {[%emt 0:00:06]} 22. Nxe5 {[%emt 0:00:04]} Nf5 {[%emt 0:00:04]} 23. Rd1 {[%emt 0:00:06]} Ne3 {[%emt 0:00:03]} 24. Rd7+ {[%emt 0:00:02]} Kb6 {[%emt 0:00:03]} 25. Rxh7 {[%emt 0:00:03]} Nxc2 {[%emt 0:00:02]} 26. Nxg6 {[%emt 0:00:04]} Rg8 {[%emt 0:00:06]} 27. f5 {[%emt 0:00:04]} Ne3 {[%emt 0:00:02]} 28. Rf7 {[%emt 0:00:19]} Nd5 {[%emt 0:00:13]} 29. h4 {[%emt 0:00:07]} Nxc3 {[%emt 0:00:01]} 30. h5 {[%emt 0:00:01]} Ne4 {[%emt 0:00:13]} 31. h6 {[%emt 0:00:03]} Ng5 {[%emt 0:00:02]} 32. h7 {[%emt 0:00:04]} Nxh7 {[%emt 0:00:05]} 33. Rxh7 {[%emt 0:00:02]} c4 {[%emt 0:00:01]} 34. Ne5 {[%emt 0:00:07]} c3 {[%emt 0:00:02]} 35. Rh3 {[%emt 0:00:03]} Rc8 {[%emt 0:00:03]} 36. Nd3 {[%emt 0:00:01]} c2 {[%emt 0:00:05]} 37. Nc1 {[%emt 0:00:02]} Rc5 {[%emt 0:00:05]} 38. g4 {[%emt 0:00:03]} Rc4 {[%emt 0:00:02]} 39. Rg3 {[%emt 0:00:01]} Rxa4 {[%emt 0:00:01]} 40. g5 {[%emt 0:00:03]} Ra1 {[%emt 0:00:02]} 41. Kg2 {[%emt 0:00:03]} Rxc1 {[%emt 0:00:02]} 42. Rc3 {[%emt 0:00:01]} Kb5 {[%emt 0:00:09]} 43. g6 {[%emt 0:00:02]} Kb4 {[%emt 0:00:01]} 44. Rc8 {[%emt 0:00:03]} a4 {[%emt 0:00:01]} 45. g7 {[%emt 0:00:01]} a3 {[%emt 0:00:01]} 46. g8=Q {[%emt 0:00:03]} Kb5 {[%emt 0:00:11]} 47. Qa2 {[%emt 0:00:02]} Kb4 {[%emt 0:00:05]} 1-0

[Event "Queens Festival Final Team 2022"]
[Site "Tornelo"]
[Date "2022.06.26"]
[Round "6.3"]
[White "Vukosavljevic, Tatjana"]
[Black "Kosgey Sheila Jerop"]
[Result "1-0"]
[ECO "E62"]
[WhiteElo "1758"]
[BlackElo "1242"]
[Annotator "NA RC"]
[PlyCount "83"]
[EventDate "2022.06.24"]
[EventType "team-tourn"]
[EventCountry "NET"]
[SourceTitle "playchess.com"]
[Source "ChessBase"]
[SourceQuality "1"]
[WhiteTeam "Serbia"]
[BlackTeam "Kenya"]
[WhiteTeamCountry "SRB"]
[BlackTeamCountry "KEN"]
[TimeControl "180+2"]

1. Nf3 {[%emt 0:00:02]} g6 {[%emt 0:00:12]} 2. g3 {[%emt 0:00:02]} Bg7 {[%emt 0:00:02]} 3. d4 {[%emt 0:00:01]} Nf6 {[%emt 0:00:02]} 4. Bg2 {[%emt 0:00:02]} O-O {[%emt 0:00:01]} 5. O-O {[%emt 0:00:00]} Re8 {[%emt 0:00:03]} 6. c4 {[%emt 0:00:01]} c6 {[%emt 0:00:01]} 7. Nc3 {[%emt 0:00:03]} d6 {[%emt 0:00:02]} 8. e4 {[%emt 0:00:04]} e5 {[%emt 0:00:03]} 9. h3 {[%emt 0:00:09]} exd4 {[%emt 0:00:03]} 10. Nxd4 {[%emt 0:00:02]} c5 {[%emt 0:00:02]} 11. Ndb5 {[%emt 0:00:06]} Bf8 {[%emt 0:00:49]} 12. Bg5 {[%emt 0:00:15]} a6 {[%emt 0:00:05]} 13. Nd5 {[%emt 0:00:14]} Nbd7 {[%emt 0:00:11]} 14. Nbc7 {[%emt 0:00:05]} h6 {[%emt 0:00:17]} 15. Bxf6 {[%emt 0:00:12]} Nxf6 {[%emt 0:00:04]} 16. Nxa8 {[%emt 0:00:12]} Nxd5 {[%emt 0:00:12]} 17. Qxd5 {[%emt 0:00:09]} Re5 {[%emt 0:00:12]} 18. Qd3 {[%emt 0:00:07]} Be6 {[%emt 0:00:03]} 19. f4 {[%emt 0:00:10]} Rh5 {[%emt 0:00:21]} 20. g4 {[%emt 0:00:13]} Rh4 {[%emt 0:00:05]} 21. Qg3 {[%emt 0:00:05]} g5 {[%emt 0:00:07]} 22. f5 {[%emt 0:00:11]} Bxc4 {[%emt 0:00:04]} 23. Rfc1 {[%emt 0:00:08]} Bb5 {[%emt 0:00:02]} 24. a4 {[%emt 0:00:03]} Bc6 {[%emt 0:00:05]} 25. e5 {[%emt 0:00:21]} Qxa8 {[%emt 0:00:17]} 26. Bxc6 {[%emt 0:00:05]} bxc6 {[%emt 0:00:03]} 27. exd6 {[%emt 0:00:02]} Qb7 {[%emt 0:00:05]} 28. Qe5 {[%emt 0:00:05]} Qd7 {[%emt 0:00:05]} 29. Rd1 {[%emt 0:00:05]} Rxh3 {[%emt 0:00:02]} 30. Kg2 {[%emt 0:00:08]} Rb3 {[%emt 0:00:07]} 31. Ra3 {[%emt 0:00:03]} Rxa3 {[%emt 0:00:04]} 32. bxa3 {[%emt 0:00:01]} c4 {[%emt 0:00:02]} 33. Qc5 {[%emt 0:00:04]} Kg7 {[%emt 0:00:03]} 34. Qxc4 {[%emt 0:00:02]} Kg8 {[%emt 0:00:02]} 35. Qxa6 {[%emt 0:00:04]} Bxd6 {[%emt 0:00:03]} 36. Qd3 {[%emt 0:00:02]} Qb7 {[%emt 0:00:06]} 37. Qxd6 {[%emt 0:00:03]} c5+ {[%emt 0:00:02]} 38. Qd5 {[%emt 0:00:01]} Qb2+ {[%emt 0:00:03]} 39. Rd2 {[%emt 0:00:02]} Qxa3 {[%emt 0:00:03]} 40. Qd8+ {[%emt 0:00:06]} Kg7 {[%emt 0:00:03]} 41. f6+ {[%emt 0:00:03]} Kg6 {[%emt 0:00:02]} 42. Qd3+ {[%emt 0:00:03]} 1-0

[Event "Queens Festival Final Team 2022"]
[Site "Tornelo"]
[Date "2022.06.26"]
[Round "6.3"]
[White "Mwendwa, Triza"]
[Black "Vujcic, Milena"]
[Result "0-1"]
[ECO "A45"]
[WhiteElo "1470"]
[BlackElo "1987"]
[Annotator "NA RC"]
[PlyCount "82"]
[EventDate "2022.06.24"]
[EventType "team-tourn"]
[EventCountry "NET"]
[SourceTitle "playchess.com"]
[Source "ChessBase"]
[SourceQuality "1"]
[WhiteTeam "Kenya"]
[BlackTeam "Serbia"]
[WhiteTeamCountry "KEN"]
[BlackTeamCountry "SRB"]
[TimeControl "180+2"]

1. d4 {[%emt 0:00:02]} Nf6 {[%emt 0:00:06]} 2. Bf4 {[%emt 0:00:05]} g6 {[%emt 0:00:02]} 3. Nc3 {[%emt 0:00:03]} d5 {[%emt 0:00:03]} 4. e3 {[%emt 0:00:03]} Bg7 {[%emt 0:00:02]} 5. Be2 {[%emt 0:00:03]} O-O {[%emt 0:00:01]} 6. Qd2 {[%emt 0:00:06]} Nbd7 {[%emt 0:00:02]} 7. Nf3 {[%emt 0:00:04]} c6 {[%emt 0:00:03]} 8. h3 {[%emt 0:00:03]} Re8 {[%emt 0:00:04]} 9. Ne5 {[%emt 0:00:03]} Ne4 {[%emt 0:00:05]} 10. Nxe4 {[%emt 0:00:07]} dxe4 {[%emt 0:00:01]} 11. Nc4 {[%emt 0:00:13]} c5 {[%emt 0:00:28]} 12. c3 {[%emt 0:00:10]} cxd4 {[%emt 0:00:05]} 13. cxd4 {[%emt 0:00:04]} Nb6 {[%emt 0:00:15]} 14. Na3 {[%emt 0:00:15]} e5 {[%emt 0:00:14]} 15. dxe5 {[%emt 0:00:13]} Qxd2+ {[%emt 0:00:02]} 16. Kxd2 {[%emt 0:00:03]} Bxe5 {[%emt 0:00:02]} 17. Bxe5 {[%emt 0:00:07]} Rxe5 {[%emt 0:00:03]} 18. Rhd1 {[%emt 0:00:03]} Be6 {[%emt 0:00:03]} 19. Ke1 {[%emt 0:00:05]} Rc5 {[%emt 0:00:03]} 20. b3 {[%emt 0:00:14]} Rac8 {[%emt 0:00:07]} 21. Rd4 {[%emt 0:00:04]} f5 {[%emt 0:00:04]} 22. Rd6 {[%emt 0:00:09]} Bf7 {[%emt 0:00:05]} 23. Rad1 {[%emt 0:00:05]} Kf8 {[%emt 0:00:19]} 24. R6d2 {[%emt 0:00:20]} Ke7 {[%emt 0:00:06]} 25. Nb5 {[%emt 0:00:03]} a6 {[%emt 0:00:12]} 26. Nd4 {[%emt 0:00:04]} Rc1 {[%emt 0:00:25]} 27. a3 {[%emt 0:00:30]} Rxd1+ {[%emt 0:00:03]} 28. Rxd1 {[%emt 0:00:05]} Rc3 {[%emt 0:00:03]} 29. Kd2 {[%emt 0:00:06]} Rc7 {[%emt 0:00:07]} 30. Rc1 {[%emt 0:00:07]} Rxc1 {[%emt 0:00:06]} 31. Kxc1 {[%emt 0:00:03]} Kd6 {[%emt 0:00:01]} 32. Kd2 {[%emt 0:00:03]} Bd5 {[%emt 0:00:04]} 33. Kc3 {[%emt 0:00:03]} Nd7 {[%emt 0:00:05]} 34. Bc4 {[%emt 0:00:09]} Ne5 {[%emt 0:00:03]} 35. Bxd5 {[%emt 0:00:06]} Kxd5 {[%emt 0:00:01]} 36. Nc2 {[%emt 0:00:02]} g5 {[%emt 0:00:13]} 37. Nb4+ {[%emt 0:00:03]} Kc5 {[%emt 0:00:02]} 38. Nc2 {[%emt 0:00:05]} a5 {[%emt 0:00:06]} 39. b4+ {[%emt 0:00:03]} axb4+ {[%emt 0:00:03]} 40. Nxb4 {[%emt 0:00:01]} f4 {[%emt 0:00:04]} 41. exf4 {[%emt 0:00:03]} gxf4 {[%emt 0:00:01]} 0-1

[Event "Queens Festival Final Team 2022"]
[Site "Tornelo"]
[Date "2022.06.26"]
[Round "6.3"]
[White "Muthoni, Vivian"]
[Black "Vujovic, Vera"]
[Result "0-1"]
[ECO "B50"]
[WhiteElo "1128"]
[BlackElo "1353"]
[Annotator "NA RC"]
[PlyCount "94"]
[EventDate "2022.06.24"]
[EventType "team-tourn"]
[EventCountry "NET"]
[SourceTitle "playchess.com"]
[Source "ChessBase"]
[SourceQuality "1"]
[WhiteTeam "Kenya"]
[BlackTeam "Serbia"]
[WhiteTeamCountry "KEN"]
[BlackTeamCountry "SRB"]
[TimeControl "180+2"]

1. e4 {[%emt 0:00:02]} c5 {[%emt 0:00:05]} 2. Nf3 {[%emt 0:00:03]} d6 {[%emt 0:00:01]} 3. Bc4 {[%emt 0:00:03]} Nf6 {[%emt 0:00:02]} 4. Nc3 {[%emt 0:00:03]} Nc6 {[%emt 0:00:02]} 5. Ng5 {[%emt 0:00:04]} e6 {[%emt 0:00:02]} 6. d3 {[%emt 0:00:06]} a6 {[%emt 0:00:11]} 7. a3 {[%emt 0:00:04]} b5 {[%emt 0:00:03]} 8. Ba2 {[%emt 0:00:04]} h6 {[%emt 0:00:13]} 9. Nf3 {[%emt 0:00:08]} Bb7 {[%emt 0:00:02]} 10. O-O {[%emt 0:00:04]} Be7 {[%emt 0:00:06]} 11. Bf4 {[%emt 0:00:14]} O-O {[%emt 0:00:03]} 12. Qe2 {[%emt 0:00:10]} Re8 {[%emt 0:00:07]} 13. e5 {[%emt 0:00:04]} dxe5 {[%emt 0:00:02]} 14. Nxe5 {[%emt 0:00:04]} Nxe5 {[%emt 0:00:03]} 15. Bxe5 {[%emt 0:00:10]} Bd6 {[%emt 0:00:03]} 16. f3 {[%emt 0:00:12]} Bxe5 {[%emt 0:00:23]} 17. Qxe5 {[%emt 0:00:04]} Qd4+ {[%emt 0:00:02]} 18. Qxd4 {[%emt 0:00:04]} cxd4 {[%emt 0:00:01]} 19. Ne4 {[%emt 0:00:06]} Bxe4 {[%emt 0:00:09]} 20. fxe4 {[%emt 0:00:04]} e5 {[%emt 0:00:01]} 21. c3 {[%emt 0:00:09]} Rad8 {[%emt 0:00:03]} 22. Rf3 {[%emt 0:00:05]} Re7 {[%emt 0:00:08]} 23. Raf1 {[%emt 0:00:07]} dxc3 {[%emt 0:00:16]} 24. bxc3 {[%emt 0:00:04]} Rc8 {[%emt 0:00:34]} 25. c4 {[%emt 0:00:18]} bxc4 {[%emt 0:00:10]} 26. Bxc4 {[%emt 0:00:04]} a5 {[%emt 0:00:07]} 27. Rg3 {[%emt 0:00:08]} Rcc7 {[%emt 0:00:30]} 28. Rxf6 {[%emt 0:00:05]} Kh7 {[%emt 0:00:03]} 29. Rff3 {[%emt 0:00:09]} g6 {[%emt 0:00:02]} 30. Rf1 {[%emt 0:00:06]} Kg7 {[%emt 0:00:03]} 31. Rgf3 {[%emt 0:00:03]} Rb7 {[%emt 0:00:02]} 32. a4 {[%emt 0:00:09]} Rbc7 {[%emt 0:00:04]} 33. h4 {[%emt 0:00:08]} Rb7 {[%emt 0:00:02]} 34. Rg3 {[%emt 0:00:03]} h5 {[%emt 0:00:03]} 35. Rg5 {[%emt 0:00:05]} Rb4 {[%emt 0:00:13]} 36. Bb5 {[%emt 0:00:06]} f6 {[%emt 0:00:03]} 37. Rg3 {[%emt 0:00:06]} Re6 {[%emt 0:00:01]} 38. Rgf3 {[%emt 0:00:04]} Rd6 {[%emt 0:00:01]} 39. g3 {[%emt 0:00:12]} Rb2 {[%emt 0:00:04]} 40. R1f2 {[%emt 0:00:04]} Rb1+ {[%emt 0:00:02]} 41. Kg2 {[%emt 0:00:02]} Rb4 {[%emt 0:00:02]} 42. Be8 {[%emt 0:00:04]} Rbd4 {[%emt 0:00:04]} 43. Bb5 {[%emt 0:00:05]} Rb4 {[%emt 0:00:01]} 44. Rc2 {[%emt 0:00:04]} Rbd4 {[%emt 0:00:04]} 45. Rc7+ {[%emt 0:00:04]} Kf8 {[%emt 0:00:03]} 46. Rc8+ {[%emt 0:00:04]} Kg7 {[%emt 0:00:02]} 47. Rc7+ {[%emt 0:00:03]} Kf8 {[%emt 0:00:02]} 0-1

[Event "Queens Festival Final Team 2022"]
[Site "Tornelo"]
[Date "2022.06.26"]
[Round "6.4"]
[White "Krush, Irina"]
[Black "Ovezdurdiyeva, Jemal"]
[Result "1-0"]
[ECO "E93"]
[WhiteElo "2430"]
[BlackElo "2061"]
[Annotator "TA"]
[PlyCount "75"]
[EventDate "2022.06.24"]
[EventType "team-tourn"]
[EventCountry "NET"]
[SourceTitle "playchess.com"]
[Source "ChessBase"]
[SourceQuality "1"]
[WhiteTeam "United States"]
[BlackTeam "Turkmenistan"]
[WhiteTeamCountry "USA"]
[BlackTeamCountry "TKM"]
[TimeControl "180+2"]

{[%evp 17,75,35,35,31,52,39,65,5,43,28,45,10,6,-18,-13,-123,-32,-46,-35,-96,-95,-146,-56,-58,0,-51,-8,-76,-50,-54,0,-7,0,-45,6,21,28,23,0,0,189,91,111,35,156,64,251,0,0,0,0,0,0,0,0,0,0,0,115,-90]} 1. d4 {[%emt 0:00:02]} Nf6 {[%emt 0:00:05]} 2. c4 {[%emt 0:00:02]} g6 {[%emt 0:00:01]} 3. Nc3 {[%emt 0:00:02]} Bg7 {[%emt 0:00:01]} 4. e4 {[%emt 0:00:02]} d6 {[%emt 0:00:01]} 5. Nf3 {[%emt 0:00:01]} O-O {[%emt 0:00:01]} 6. Be2 {[%emt 0:00:00]} e5 {[%emt 0:00:02]} 7. d5 {[%emt 0:00:01]} Nbd7 {[%emt 0:00:03]} 8. h3 {[%emt 0:00:05]} Nc5 {[%emt 0:00:12]} 9. Qc2 {[%emt 0:00:18]} a5 {[%emt 0:00:03]} 10. Bg5 {[%emt 0:00:03] is cutting edge theory. E93: King's Indian: Classical: Petrosian System with 7...Nbd7.} Bd7 {[%emt 0:00:11]} 11. Nd2 {[%emt 0:00:03]} Qe8 {[%emt 0:00:04]} 12. O-O {[%emt 0:00:06]} (12. g4 $14) 12... h6 {[%emt 0:00:03]} 13. Be3 {[%emt 0:00:01]} b6 {[%emt 0:00:08] [#]} 14. Nb5 $146 {[%emt 0:00:07]} (14. Nb3 $5 {[%cal Rb3c5]}) ({Predecessor:} 14. b3 Nh7 15. a3 Na6 16. Rfb1 f5 17. f3 Nf6 18. Qd1 Nc5 19. b4 Na4 20. Nxa4 Bxa4 {0-1 (34) Petukhov,V (2323)-Andersen,J (2307) ICCF email 2014}) 14... Qd8 {[%emt 0:00:20]} 15. Bd3 {[%emt 0:00:39]} Nh5 {[%emt 0:00:07]} 16. Nb3 {[%emt 0:00:06]} (16. Be2 $11) 16... Nf4 {[%emt 0:00:08]} (16... Nxd3 $17 17. Qxd3 f5 18. exf5 gxf5) 17. Nxc5 $15 {[%emt 0:00:03]} bxc5 {[%emt 0:00:03]} 18. Qd2 {[%emt 0:00:11] [#]} (18. f3 $15) 18... Qg5 $1 $17 {[%emt 0:00:52][%csl Gf4,LRg2,LRh3][%cal Rg5g2]} 19. g3 {[%emt 0:00:38]} (19. f3 $142) 19... Nxh3+ {[%emt 0:00:16]} (19... Bxh3 $17 {Hoping for ...Qg4.} 20. Rfb1 {[#]} Qh5 $1 21. Bxf4 exf4 22. Qxf4 Bg4) 20. Kh2 $15 {[%emt 0:00:21]} Qf6 {[%emt 0:00:41]} ({Much less strong is} 20... Qh5 21. Be2 Bg4 22. Bxg4 Qxg4 23. f3 $16) (20... Qd8 $15) 21. f3 {[%emt 0:00:36]} (21. Nxc7 $11 Rab8 22. Nb5) 21... Ng5 {[%emt 0:00:11]} 22. Be2 {[%emt 0:00:01]} (22. Bxg5 $11 {keeps the balance.} Qxg5 23. Qxg5 hxg5 24. Nxc7) 22... Rfc8 {[%emt 0:00:06]} 23. Rf2 {[%emt 0:00:05]} Nh7 {[%emt 0:00:03]} (23... Qe7 $15) 24. Rh1 {[%emt 0:00:03]} h5 {[%emt 0:00:01]} 25. Kg2 {[%emt 0:00:02]} (25. g4 $5 {[%cal Rh2g1]}) 25... Bxb5 {[%emt 0:00:04]} ({Better is} 25... Qe7 $15) 26. cxb5 $11 {[%emt 0:00:02] next g4 is good for White.} Qe7 $1 {[%emt 0:00:02]} 27. g4 {[%emt 0:00:06]} hxg4 {[%emt 0:00:03]} 28. fxg4 {[%emt 0:00:01]} Nf8 $2 {[%emt 0:00:01]} (28... Bf6 $1 $11 {and Black has nothing to worry.}) 29. Bh6 {[%emt 0:00:07]} (29. a4 $18) 29... f6 $16 {[%emt 0:00:03]} 30. Qe3 {[%emt 0:00:01] White is much more active.} (30. Bxg7 $16 Qxg7 31. g5) 30... Nd7 {[%emt 0:00:03]} (30... g5 $14) 31. Rf3 {[%emt 0:00:04]} (31. g5 $16 f5 32. exf5 gxf5 33. Rxf5) 31... Bxh6 $2 {[%emt 0:00:02]} ({Black should play} 31... g5 $14) 32. Rxh6 $2 {[%emt 0:00:01]} ({Only move:} 32. Qxh6 $18 {Threatening mate with Qh8+.} Qg7 33. Qh2) 32... Kg7 $11 {[%emt 0:00:03] Prevents Qh8.} 33. Rfh3 {[%emt 0:00:02]} Rh8 {[%emt 0:00:01] Prevents Rh7+.} 34. Bd1 {[%emt 0:00:04]} Rag8 {[%emt 0:00:01]} 35. Qd2 {[%emt 0:00:03]} Nf8 {[%emt 0:00:03]} 36. Rxh8 {[%emt 0:00:01]} Rxh8 {[%emt 0:00:02]} 37. Qxa5 {[%emt 0:00:03]} Qd7 {[%emt 0:00:03]} (37... Rxh3 $11 {remains equal.} 38. Kxh3 Nh7) 38. Qa7 $2 {[%emt 0:00:02][%mdl 32768] Weighted Error Value: White=0.44/Black=0.47. Loss on time!?} (38. Rxh8 $16 {is forced if you want to stay better.} Kxh8 39. a4) 1-0

[Event "Queens Festival Final Team 2022"]
[Site "Tornelo"]
[Date "2022.06.26"]
[Round "6.4"]
[White "Shohradowa, Lala"]
[Black "Bian, Erin"]
[Result "1-0"]
[ECO "E11"]
[WhiteElo "1856"]
[BlackElo "1811"]
[Annotator "NA RC"]
[PlyCount "65"]
[EventDate "2022.06.24"]
[EventType "team-tourn"]
[EventCountry "NET"]
[SourceTitle "playchess.com"]
[Source "ChessBase"]
[SourceQuality "1"]
[WhiteTeam "Turkmenistan"]
[BlackTeam "United States"]
[WhiteTeamCountry "TKM"]
[BlackTeamCountry "USA"]
[TimeControl "180+2"]

1. d4 {[%emt 0:00:05]} Nf6 {[%emt 0:00:51]} 2. c4 {[%emt 0:00:04]} e6 {[%emt 0:00:01]} 3. g3 {[%emt 0:00:02]} Bb4+ {[%emt 0:00:02]} 4. Bd2 {[%emt 0:00:03]} a5 {[%emt 0:00:03]} 5. Bg2 {[%emt 0:00:02]} d5 {[%emt 0:00:01]} 6. Nf3 {[%emt 0:00:06]} O-O {[%emt 0:00:02]} 7. O-O {[%emt 0:00:02]} dxc4 {[%emt 0:00:01]} 8. a3 {[%emt 0:00:06]} Bxd2 {[%emt 0:00:01]} 9. Nbxd2 {[%emt 0:00:02]} b5 {[%emt 0:00:02]} 10. Ne5 {[%emt 0:00:10]} Ra7 {[%emt 0:00:02]} 11. a4 {[%emt 0:00:05]} Qxd4 {[%emt 0:00:09]} 12. Nef3 {[%emt 0:00:07]} Qb6 {[%emt 0:00:06]} 13. axb5 {[%emt 0:00:03]} Qxb5 {[%emt 0:00:02]} 14. Nd4 {[%emt 0:00:02]} Qxb2 {[%emt 0:00:04]} 15. Nxc4 {[%emt 0:00:02]} Qb4 {[%emt 0:00:05]} 16. Ra4 {[%emt 0:00:10]} Qe7 {[%emt 0:00:06]} 17. Nb5 {[%emt 0:00:04]} Ra6 {[%emt 0:00:13]} 18. Rxa5 {[%emt 0:00:18]} Rxa5 {[%emt 0:00:08]} 19. Nxa5 {[%emt 0:00:02]} Qb4 {[%emt 0:00:03]} 20. Qb3 {[%emt 0:00:08]} Qxa5 {[%emt 0:00:02]} 21. Rc1 {[%emt 0:00:08]} c6 {[%emt 0:00:11]} 22. Nd6 {[%emt 0:00:05]} Qc7 {[%emt 0:00:03]} 23. Qa3 {[%emt 0:00:07]} Rd8 {[%emt 0:00:05]} 24. Rd1 {[%emt 0:00:14]} c5 {[%emt 0:00:06]} 25. Rc1 {[%emt 0:00:44]} Qxd6 {[%emt 0:00:03]} 26. Rxc5 {[%emt 0:00:04]} Ba6 {[%emt 0:00:27]} 27. Qa5 {[%emt 0:00:07]} Qd1+ {[%emt 0:00:10]} 28. Bf1 {[%emt 0:00:06]} Bxe2 {[%emt 0:00:04]} 29. Rc1 {[%emt 0:00:02]} Qd2 {[%emt 0:00:08]} 30. Qxd2 {[%emt 0:00:03]} Rxd2 {[%emt 0:00:03]} 31. Rc8+ {[%emt 0:00:02]} Rd8 {[%emt 0:00:02]} 32. Rxd8+ {[%emt 0:00:02]} Ne8 {[%emt 0:00:01]} 33. Rxe8# {[%emt 0:00:01]} 1-0

[Event "Queens Festival Final Team 2022"]
[Site "Tornelo"]
[Date "2022.06.26"]
[Round "6.4"]
[White "Yellamraju, Aparna"]
[Black "Agajanova, Meryem"]
[Result "1/2-1/2"]
[ECO "E05"]
[WhiteElo "1720"]
[BlackElo "1783"]
[Annotator "NA RC"]
[PlyCount "134"]
[EventDate "2022.06.24"]
[EventType "team-tourn"]
[EventCountry "NET"]
[SourceTitle "playchess.com"]
[Source "ChessBase"]
[SourceQuality "1"]
[WhiteTeam "United States"]
[BlackTeam "Turkmenistan"]
[WhiteTeamCountry "USA"]
[BlackTeamCountry "TKM"]
[TimeControl "180+2"]

1. d4 {[%emt 0:00:02]} d5 {[%emt 0:00:04]} 2. c4 {[%emt 0:00:02]} e6 {[%emt 0:00:02]} 3. Nf3 {[%emt 0:00:02]} Nf6 {[%emt 0:00:01]} 4. g3 {[%emt 0:00:02]} Be7 {[%emt 0:00:02]} 5. Bg2 {[%emt 0:00:01]} O-O {[%emt 0:00:01]} 6. O-O {[%emt 0:00:01]} dxc4 {[%emt 0:00:01]} 7. Qc2 {[%emt 0:00:03]} a6 {[%emt 0:00:02]} 8. a4 {[%emt 0:00:04]} Bd7 {[%emt 0:00:01]} 9. Rd1 {[%emt 0:00:02]} Bc6 {[%emt 0:00:04]} 10. Nc3 {[%emt 0:00:04]} Nbd7 {[%emt 0:00:14]} 11. e4 {[%emt 0:00:04]} Rb8 {[%emt 0:00:04]} 12. d5 {[%emt 0:00:15]} exd5 {[%emt 0:00:10]} 13. e5 {[%emt 0:00:03]} Ne4 {[%emt 0:00:31]} 14. Nxd5 {[%emt 0:00:12]} Bxd5 {[%emt 0:00:01]} 15. Rxd5 {[%emt 0:00:02]} Nec5 {[%emt 0:00:02]} 16. Qxc4 {[%emt 0:00:28]} c6 {[%emt 0:00:01]} 17. Rd1 {[%emt 0:00:03]} Qb6 {[%emt 0:00:19]} 18. b4 {[%emt 0:00:12]} Ne6 {[%emt 0:00:20]} 19. Rxd7 {[%emt 0:00:02]} Bxb4 {[%emt 0:00:02]} 20. Be3 {[%emt 0:00:05]} Qa5 {[%emt 0:00:02]} 21. Rb1 {[%emt 0:00:11]} c5 {[%emt 0:00:02]} 22. Rdd1 {[%emt 0:00:07]} Qxa4 {[%emt 0:00:03]} 23. Bd2 {[%emt 0:00:05]} b5 {[%emt 0:00:07]} 24. Qg4 {[%emt 0:00:08]} Bxd2 {[%emt 0:00:06]} 25. Qxa4 {[%emt 0:00:03]} bxa4 {[%emt 0:00:03]} 26. Nxd2 {[%emt 0:00:03]} Nd4 {[%emt 0:00:07]} 27. Nc4 {[%emt 0:00:06]} g6 {[%emt 0:00:38]} 28. Na3 {[%emt 0:00:11]} Rb3 {[%emt 0:00:11]} 29. Nc4 {[%emt 0:00:10]} Rfb8 {[%emt 0:00:06]} 30. Ra1 {[%emt 0:00:04]} R8b4 {[%emt 0:00:08]} 31. Nd2 {[%emt 0:00:08]} Rb2 {[%emt 0:00:06]} 32. Ne4 {[%emt 0:00:08]} c4 {[%emt 0:00:13]} 33. Nc5 {[%emt 0:00:04]} Nc2 {[%emt 0:00:03]} 34. Rxa4 {[%emt 0:00:07]} c3 {[%emt 0:00:02]} 35. Rxa6 {[%emt 0:00:05]} Nd4 {[%emt 0:00:03]} 36. Nd3 {[%emt 0:00:07]} Ne2+ {[%emt 0:00:02]} 37. Kf1 {[%emt 0:00:04]} c2 {[%emt 0:00:04]} 38. Nxb2 {[%emt 0:00:09]} Rxb2 {[%emt 0:00:01]} 39. Raa1 {[%emt 0:00:11]} cxd1=Q+ {[%emt 0:00:03]} 40. Rxd1 {[%emt 0:00:02]} Nc3 {[%emt 0:00:02]} 41. Re1 {[%emt 0:00:04]} Nb5 {[%emt 0:00:02]} 42. f4 {[%emt 0:00:02]} Nc7 {[%emt 0:00:01]} 43. Rd1 {[%emt 0:00:04]} Ne6 {[%emt 0:00:02]} 44. Bd5 {[%emt 0:00:03]} Kf8 {[%emt 0:00:01]} 45. Bxe6 {[%emt 0:00:04]} fxe6 {[%emt 0:00:02]} 46. h4 {[%emt 0:00:02]} Ra2 {[%emt 0:00:02]} 47. Rd3 {[%emt 0:00:03]} Kf7 {[%emt 0:00:02]} 48. Re3 {[%emt 0:00:03]} Ke7 {[%emt 0:00:01]} 49. Re2 {[%emt 0:00:01]} Ra3 {[%emt 0:00:01]} 50. Kf2 {[%emt 0:00:01]} Kf7 {[%emt 0:00:02]} 51. Re3 {[%emt 0:00:01]} Ra2+ {[%emt 0:00:01]} 52. Kf3 {[%emt 0:00:01]} h5 {[%emt 0:00:02]} 53. Rc3 {[%emt 0:00:02]} Ra4 {[%emt 0:00:02]} 54. Ke3 {[%emt 0:00:02]} Rb4 {[%emt 0:00:02]} 55. Kd3 {[%emt 0:00:02]} Ra4 {[%emt 0:00:02]} 56. Rc4 {[%emt 0:00:03]} Ra3+ {[%emt 0:00:01]} 57. Rc3 {[%emt 0:00:01]} Ra4 {[%emt 0:00:02]} 58. Kc2 {[%emt 0:00:02]} Ke7 {[%emt 0:00:02]} 59. Kb3 {[%emt 0:00:01]} Re4 {[%emt 0:00:03]} 60. Rd3 {[%emt 0:00:02]} Kf7 {[%emt 0:00:03]} 61. Kc3 {[%emt 0:00:02]} Ra4 {[%emt 0:00:01]} 62. Kd2 {[%emt 0:00:02]} Ke7 {[%emt 0:00:02]} 63. Ke3 {[%emt 0:00:01]} Kf7 {[%emt 0:00:02]} 64. Kf3 {[%emt 0:00:05]} Ke7 {[%emt 0:00:01]} 65. Ke3 {[%emt 0:00:04]} Kf7 {[%emt 0:00:02]} 66. Rd4 {[%emt 0:00:01]} Ra3+ {[%emt 0:00:02]} 67. Rd3 {[%emt 0:00:01]} Ra4 {[%emt 0:00:01]} 1/2-1/2